Cogmind - Beta 13 X1 @@@ ROGUE MODE // 2023.07.09 @ 11:05:29 Player: kasaphescent Result: Destroyed by ZK-H86(R) with Subdweller Beam Cannon Performance ------------- Evolutions (0) 0 Regions Visited (2) 400 Robots Destroyed (21) 105 Value Destroyed (585) 585 Prototype IDs (0) 0 Alien Tech Used (0) 0 Bonus (0) 0 TOTAL SCORE: 1090 Bonus ------- None Cogmind --------- Core Integrity 0/250 Matter 275/300 Energy 125/125 System Corruption 0% Temperature Cool (9) Movement Walking (330) Ox3 Location -10/Subcaves Parts ------- > --- POWER (1) -------- Light Ion Engine > --- PROPULSION (2) --- Aluminum Leg > --- UTILITY (2) ------ Heat Sink Large Storage Unit > --- WEAPON (2) ------- Subdweller Laser Subdweller Machine Gun > --- INVENTORY (15) --- Ion Engine Light Ion Engine Aluminum Leg Aluminum Leg Aluminum Leg Wheel High-capacity Matter Pod (200) Medium Laser Medium Laser Small Laser Grenade Launcher Grenade Launcher Peak State ------------ > --- POWER ------------ Ion Engine > --- PROPULSION ------- Light Treads Aluminum Leg > --- UTILITY ---------- Heat Sink Large Storage Unit > --- WEAPON ----------- Subdweller Laser Subdweller Machine Gun > --- INVENTORY -------- Light Ion Engine Light Ion Engine Aluminum Leg Aluminum Leg Aluminum Leg Wheel High-capacity Matter Pod Medium Laser Medium Laser Small Laser Grenade Launcher Grenade Launcher [Rating: 10] Favorites ----------- Power Ion Engine Engine Ion Engine Propulsion Light Treads Treads Light Treads Leg Aluminum Leg Wheel Wheel Utility Large Storage Unit Device Heat Sink Storage Large Storage Unit Processor Targeting Computer Weapon Assault Rifle Energy Gun Medium Laser Ballistic Gun Assault Rifle Launcher Grenade Launcher Build | -11 -10 -10 ------- Run | Jun Mat Sub Slots Evolved . | . . . Power . | . . . Propulsion . | . . . Utility . | . . . Weapon . | . . . Parts Attached 27 | 6 13 8 Power 3 | 1 1 1 Engine 3 | 1 1 1 Core . | . . . Reactor . | . . . Propulsion 8 | 2 3 3 Treads 3 | 1 1 1 Leg 3 | . 2 1 Wheel 2 | 1 . 1 Hover . | . . . Flight . | . . . Utility 5 | 1 3 1 Device 1 | . . 1 Storage 3 | 1 2 . Processor 1 | . 1 . Hackware . | . . . Protection . | . . . Artifact . | . . . Weapon 11 | 2 6 3 Energy Gun 4 | . 2 2 Energy Cannon . | . . . Ballistic Gun 5 | 2 2 1 Ballistic Cannon . | . . . Launcher 2 | . 2 . Special Weapon . | . . . Impact Weapon . | . . . Slashing Weapon . | . . . Piercing Weapon . | . . . Special Melee Weapon . | . . . Unidentified Prototypes . | . . . Parts Lost 8 | . 5 3 Power . | . . . Propulsion 5 | . 3 2 Utility . | . . . Weapon 3 | . 2 1 Highest Loss Streak 3 | . 3 1 To Critical Strikes . | . . . Average Slot Usage (%) 98 | . 98 99 Engine 14 | . 14 14 Treads 13 | . 16 10 Leg 10 | . 7 14 Wheel 3 | . 4 2 Device 4 | . . 11 Storage 14 | . 14 14 Processor 9 | . 13 2 Energy Gun 11 | . 4 22 Ballistic Gun 15 | . 22 5 Naked Turns . | . . . Heaviest Build 34 | 14 30 34 Greatest Support 40 | 10 40 20 Greatest Overweight (x) 2 | 1 2 2 Average Overweight (x) . | . . 1 Largest Inventory Capacity 15 | 8 15 15 Average Capacity 14 | 6 13 15 Most Carried 13 | 6 13 13 Average Carried 10 | 3 9 11 Final Capacity 15 | 8 15 15 Final Carried 12 | 6 12 12 Class Distribution -------------------- 72% | Mutant 27% | Scavenger-Mutant Dominant Class ---------------- Mutant | -10/Materials Scavenger-Mutant | -10/Subcaves Resources | -11 -10 -10 ----------- Run | Jun Mat Sub Matter Collected 890 | 214 513 163 Remotely . | . . . Salvage Created 609 | . 480 129 Parts 39 | . 32 7 Haulers Intercepted 1 | . 1 . Recyclers Shooed 1 | . 1 . Parts Field Recycled . | . . . Retrieved Matter . | . . . Parts Self-Destructed 10 | . . 10 Prevented . | . . . Kills | -11 -10 -10 ------- Run | Jun Mat Sub Combat Hostiles Destroyed 20 | . 17 3 Guns 15 | . 12 3 AOE 5 | . 5 . Classes Destroyed 4 | . 3 1 Hauler 1 | . 1 . Swarmer 6 | . 6 . Grunt 13 | . 11 2 Sentry 1 | . . 1 Best Kill Streak 6 | . 6 2 Combat Bots Only 6 | . 6 2 Max Kills in Single Turn 2 | . 2 1 Gunslinging . | . . . Exploded 2 | . 2 . Melee . | . . . Uniques/NPCs Destroyed . | . . . Combat | -11 -10 -10 -------- Run | Jun Mat Sub Damage Taken 1338 | . 908 430 Core 277 | . 180 97 Absorbed by Shields . | . . . Core Remaining (%) 100 | 100 . . Volleys Fired 76 | . 60 16 Largest 2 | . 2 2 Hottest 90 | . 70 90 Shots Fired 135 | . 106 29 Gun 131 | . 102 29 Cannon . | . . . Launcher 4 | . 4 . Special . | . . . Kinetic 81 | . 79 2 Thermal 50 | . 23 27 Explosive 4 | . 4 . Electromagnetic . | . . . Robot Hit Streak 33 | . 33 14 Robot Miss Streak 2 | . 2 1 Penetration Max . | . . . Secondary Targets 3 | . 3 . Max Gunslinging Chain 1 | . 1 . Shots Hit Robots 103 | . 84 19 Core Hits 39 | . 32 7 Critical Kills . | . . . Critical Parts Destroyed . | . . . Critical Strikes 3 | . 3 . Burn 3 | . 3 . Melee Attacks . | . . . Impact . | . . . Slashing . | . . . Piercing . | . . . Sneak Attacks . | . . . Combat Hostiles . | . . . Follow-up Attacks . | . . . Damage Inflicted 1682 | . 1461 221 Guns 1269 | . 1048 221 Cannons . | . . . Explosions 400 | . 400 . Melee . | . . . Ramming 13 | . 13 . Kinetic 802 | . 796 6 Thermal 467 | . 252 215 Explosive 400 | . 400 . Electromagnetic . | . . . Impact . | . . . Slashing . | . . . Piercing . | . . . Highest Corruption . | . . . Average Corruption . | . . . Corruption Purged . | . . . Corruption Blocked . | . . . Overload Shots . | . . . Overflow Damage 6 | . 6 . Projectiles . | . . . Explosions 6 | . 6 . Melee . | . . . Knockbacks . | . . . Impact . | . . . Kinetic . | . . . Secondary . | . . . Self-Inflicted Damage 28 | . 28 . Shots 1 | . 1 . Rammed 4 | . 4 . Targets Rammed 4 | . 4 . Kicked . | . . . Crushed . | . . . Highest Temperature 139 | . 139 . Average Temperature 49 | . 49 . Received Heat Transfer 621 | . 432 189 Siege Activations . | . . . Robots Corrupted . | . . . Combat Hostiles . | . . . Parts Fried . | . . . Impact Corruptions . | . . . Robots Melted . | . . . Combat Hostiles . | . . . Parts Melted . | . . . Heat Transferred 1532 | . 962 570 Parts Sabotaged . | . . . Parts Stolen . | . . . Parts Stripped . | . . . Power Chain Reactions . | . . . Missiles Intercepted . | . . . Alert | -11 -10 -10 ------- Run | Jun Mat Sub Peak Influence 280 | . 280 . Initial . | . . . Average 95 | . 100 . Maximum Alert Level 1 | . 1 . Low Security (%) 76 | 100 75 . Level 1 23 | . 24 . Level 2 . | . . . Level 3 . | . . . Level 4 . | . . . Level 5 . | . . . High Security . | . . . Max Security . | . . . Squads Dispatched 4 | . 4 . Investigation 1 | . 1 . Extermination . | . . . Reinforcement 3 | . 3 . Assault . | . . . Garrison . | . . . Intercept . | . . . Searches Triggered . | . . . Construction Impeded . | . . . Haulers Reinforced . | . . . Active Scanning Responses . | . . . Cargo Convoy Interrupts . | . . . Stealth | -11 -10 -10 --------- Run | Jun Mat Sub Distress Signals . | . . . Communications Jammed . | . . . Distress Signals . | . . . Times Spotted 29 | . 25 4 Peak Tracking Total 6 | . 6 2 Tactical Retreats 1 | . 1 . Traps | -11 -10 -10 ------- Run | Jun Mat Sub Traps Triggered 3 | . 1 2 Indirectly . | . . . Trap Hack Attempts . | . . . Triggered . | . . . Disarmed . | . . . Reprogrammed . | . . . Reused . | . . . Traps Extracted . | . . . Installed . | . . . Triggered . | . . . Machines | -11 -10 -10 ---------- Run | Jun Mat Sub Machines Disabled 1 | . 1 . Max in Single Turn 1 | . 1 . Machines Repaired . | . . . Machines Sabotaged . | . . . Overloaded Fab Kills . | . . . Hacking | -11 -10 -10 --------- Run | Jun Mat Sub Machines Accessed 5 | . 5 . Terminals 4 | . 4 . Fabricators . | . . . Repair Stations . | . . . Recycling Units 1 | . 1 . Scanalyzers . | . . . Garrison Access . | . . . Total Hacks 14 | . 14 . Successful 6 | . 6 . Failed 8 | . 8 . Catastrophic 1 | . 1 . Database Lockouts . | . . . Manual 11 | . 11 . Terminals 11 | . 11 . Fabricators . | . . . Repair Stations . | . . . Recycling Units 3 | . 3 . Scanalyzers . | . . . Garrison Access . | . . . Terminal Hacks . | . . . Fabricator Hacks . | . . . Repair Station Hacks . | . . . Recycling Unit Hacks 2 | . 2 . Retrieve Matter 1 | . 1 . Retrieve Components 1 | . 1 . Scanalyzer . | . . . Garrison Access Hacks . | . . . Unauthorized Hacks 4 | . 4 . Terminals 4 | . 4 . Botnet 4 | . 4 . Fabricators . | . . . Repair Stations . | . . . Recycling Units . | . . . Scanalyzers . | . . . Garrison Access . | . . . Data Cores Recovered . | . . . Used . | . . . Hacking Detections 5 | . 5 . Full Trace Events 1 | . 1 . Feedback Events . | . . . Feedback Blocked . | . . . Robot Schematics Acquired . | . . . Robots Built . | . . . Authchips . | . . . Time . | . . . Total Robot Build Rating . | . . . Part Schematics Acquired . | . . . Parts Built . | . . . Authchips . | . . . Time . | . . . Total Part Build Rating . | . . . Parts Repaired . | . . . Time . | . . . Parts Recycled . | . . . Recycled Matter . | . . . Retrieved Matter 124 | . 124 . Retrieved Components 10 | . 10 . Parts Scanalyzed . | . . . Part Schematics Acquired . | . . . Parts Damaged . | . . . Bothacking | -11 -10 -10 ------------ Run | Jun Mat Sub Used RIF Installer . | . . . Robots Hacked . | . . . Non-combat . | . . . Combat . | . . . Robot Hacks Applied . | . . . Relay Couplers Released . | . . . Fabnet Peak Effective % . | . . . Robots Rewired . | . . . Allies Hacked . | . . . Hacks Repelled . | . . . Allies | -11 -10 -10 -------- Run | Jun Mat Sub Total Allies . | . . . Largest Group . | . . . Highest-Rated Group . | . . . Highest-Rated Ally . | . . . Total Orders . | . . . Ally Attacks . | . . . Total Damage . | . . . Kills . | . . . Allies Corrupted . | . . . Allies Melted . | . . . Intel | -11 -10 -10 ------- Run | Jun Mat Sub Robot Analysis Total . | . . . Derelict Logs Recovered . | . . . Drone Launches . | . . . Drone Recoveries . | . . . Exploration | -11 -10 -10 ------------- Run | Jun Mat Sub Turns Passed 1480 | 51 847 582 Spaces Moved 734 | 41 445 248 Core 8 | 8 . . Treads 304 | . 161 143 Legs 133 | . 72 61 Wheels 289 | 33 212 44 Hover . | . . . Flight . | . . . Fastest Speed 50 | 50 95 110 Average Speed 158 | 87 139 204 Slowest Speed 240 | 100 240 240 Overloaded Moves . | . . . Propulsion Burnouts . | . . . Robots Hopped . | . . . Cave-ins Triggered . | . . . Exploration Rate (%) 35 | 3 84 19 Regions Visited 2 Branch Regions 1 Pre-discovered Areas 1 | . . 1 Known Exits Taken . | . . . Unknown Exits Taken 2 | 1 1 . Scrap Searched . | . . . Spaces Dug 12 | . 12 . Terrain Destroyed 31 | . 31 . Melee . | . . . Projectile . | . . . AOE 31 | . 31 . Terrain Rammed . | . . . Walls Destroyed . | . . . Machines Disabled . | . . . Actions | -11 -10 -10 --------- Run | Jun Mat Sub Total 905 | 52 561 292 Wait 39 | . 23 16 Move 732 | 40 444 248 Hop . | . . . Pick Up 20 | 6 12 2 Fast Attach 9 | 6 2 1 Attach 7 | . 4 3 Detach 2 | . . 2 Swap 11 | . 7 4 Drop 5 | . 5 . Fire 76 | . 60 16 Melee . | . . . Ram . | . . . Kick . | . . . Crush 4 | . 4 . Escape Stasis . | . . . Rewire . | . . . Trap . | . . . Miscellaneous . | . . . Route ------- -11/Junkyard -10/Materials (discovered 4 exits: [*Mat x2] / [*Min] / [*Sub]) -10/Subcaves History --------- Turn | Location | Event 7 | -11/Junkyard | Discovered new exit (range 15) 52 | -11/Junkyard | Entered Materials 321 | -10/Materials | Build established: Mutant 368 | -10/Materials | Discovered new exit (range 10) 395 | -10/Materials | Core integrity fell below 50% 513 | -10/Materials | Discovered new exit (range 7) 609 | -10/Materials | Discovered new exit (range 7) 679 | -10/Materials | Lost 3 parts (1n2w) 891 | -10/Materials | Discovered new exit (range 5) 899 | -10/Materials | Entered Subcaves 1104 | -10/Subcaves | Core integrity fell below 20% 1128 | -10/Subcaves | Shifting Twisted Machinery released Sub. Power Source 1185 | -10/Subcaves | Shifting Twisted Machinery released Sub. Laser 1187 | -10/Subcaves | Learned location of Zion (-6) 1187 | -10/Subcaves | Met a Zionite searching for "candidates" 1305 | -10/Subcaves | Build established: Scavenger-Mutant 1354 | -10/Subcaves | Shifting Twisted Machinery released Sub. Machine Gun 1481 | -10/Subcaves | Destroyed by ZK-H86(R) with Subdweller Beam Cannon Last Messages --------------- 01102_ Ion Engine fries itself beyond repair. 01111_ Sml. Laser fries itself beyond repair. 01113_ Wheel destroyed. 01114_ G-47 Trooper destroyed. 01117_ Acquired 74 matter. 01118_ Aluminum Leg fries itself beyond repair. Sub. Power Source falls loose from the Twisted Machinery. 01158_ Acquired 34 matter. 01161_ RF-PWZ(z): "She is not going to be happy we haven't found any suitable candidates yet." Sub. Laser falls loose from the Twisted Machinery. 01187_ RF-PWZ(z): "Hey you! It's really dangerous down here, I feel that you could die at any moment. For your health and safety might I suggest a trip to Zion?" World map updated: -6/Zion. 01191_ Acquired Sub. Laser. Sub. Machine Gun falls loose from the Twisted Machinery. 01432_ Acquired Sub. Machine Gun. 01476_ MJ-O69(z) pulls a Mak. Hammer out of the Twisted Machinery. 01479_ Lgt. Treads destroyed. Map ----- +----------------------------------------------------+ | ?????????????????????????????????????????????????? | | ?????????????????????????????????????????????????? | | ?????????????????????????????????????????????????? | | ?????????????????????????????????????????????????? | | ?????????????????????????????????????????????????? | | ?????????????????????????????????????????????????? | | ?????????????????????????????????????????????????? | | ?????????????????????????????????????????????????? | | ?????????????????????????????????????????????????? | | ?????????????????????????????????????????????????? | | ?????????????????????????????????????????????????? | | ??????????????????????#??????????????????????????? | | ?????????????????????# ??????????????????????????? | | ????????????????????? &?????????#????????????????? | | ????????????????#####&"???##?### ##??????????????? | | ???????????????## ?$ #### ??# #??????????????? | | ??????????????## ## # ???? #??????????????? | | ??????????????# " "????? #?????????????? | | ??????????????# ##?#### #?????????????? | | ??????????????# ## "###" ??????????????? | | ??????????????# z z" ???????????????? | | ??????????????????# """""" ???????????????? | | ??????????????????# ##R ##"# ##??????????????? | | ??????????????????# ## #?#"""#??????????????? | | ??????????????????# #### #?#" #????######????? | | ??????????????????##???##@"##?#" ###### # # # | | ??????????????????????##"" #### ## | | ?????????????????????## ##"" | | ????????????????????## "" # # ##??? | | ???????????????????## ""## ##????????? | | ???????????????????# #### ##????????? | | ???????????????????# #### ##?# ##???????? | | ??????????????????# #####??# #?# !%&###?????? | | ??????????????????# ##?????## ##?# ""& #?????? | | ??????????????????###???????# #?##""""" #?????? | | ????????????????????????????## ##??##"!& #?????? | | ????????????????????????????## "#??##%!## #????? | | ????????????????????????????# ##??#&&#### #???? | | ????????????????????????????# ##??# &#??## #???? | | ????????????????????????????# #??# ##???###??## | | ????????????????????????????## ##?## ##???? ## # | | ????????????????????????##??# ### #?#?? ? | | ????????????????????????# ### ##" #?# ? | | ????????????????????????# # # %* ##? ## # | | ????????????????????????# = ## # # | | ????????????????????????# | | ????????????????????????# # ##" # | | ????????????????????????# ## #####" " | | ????????????????????????##" " ##?#" | | ?????????????????????????#"""""* #?#" | +----------------------------------------------------+ Best States ------------- Heat Dissipation 35 Energy Generation 10 Energy Capacity 250 Matter Stores 300 Matter Capacity 300 Sight Range 16 Terrain Scan Density 10 Evasion (%) 41 Targeting Accuracy 5 Recoil Reduction 2 Item Schematics ----------------- None Robot Schematics ------------------ None Fabricated ------------ Nothing Alien Tech Used ----------------- None Achievements -------------- None Challenges ------------ None Game ------ Seed NodeSalvageKit Manual? 0 Play Time 00:11:59 Cumulative 374.6 hours Start 2023.07.09 @ 10:56:37 End 2023.07.09 @ 11:05:29 Sessions 1 Manual Loads 0 Difficulty Rogue Special Mode None Game No. 259 Rogue 259 Adventurer 0 Explorer 0 Win Type - Total 29 Types 25/0/3/1/0/0/0/0/0 Lore% 70 Gallery% 85 Achievement% 69 Wizard Run 0 Options --------- ASCII 0 Keyboard 1 Movement Numpad Keybinds 0 Fullscreen 2 Font 18/SmallcapsGlow Map View 76x50 Tactical HUD 1 Map Filters NONE Filters NONE Steam 1 RUN: 9f9b0741-44be-4e30-a611-439b47b74fc1